[Event "Czech Youth U16 Boys 2024"]
[Site "Kouty nad Desnou"]
[Date "2024.03.16"]
[Round "9.8"]
[White "Mikolas, Petr"]
[Black "Stein, Michael"]
[Result "1-0"]
[ECO "C18"]
[WhiteElo "1957"]
[BlackElo "1883"]
[Annotator "RC"]
[PlyCount "89"]
[EventDate "2024.03.10"]
[EventType "swiss"]
[EventCountry "CZE"]
[SourceTitle "playchess.com"]
[Source "ChessBase"]
[SourceQuality "1"]
[TimeControl "40/5400+30:1800+30"]

1. e4 {[%emt 0:00:03]} e6 {[%emt 0:00:04]} 2. d4 {[%emt 0:00:09]} d5 {[%emt 0:00:03]} 3. Nc3 {[%emt 0:00:33]} Bb4 4. e5 {[%emt 0:00:06]} c5 {[%emt 0:00:13]} 5. a3 {[%emt 0:00:03]} Bxc3+ {[%emt 0:00:09]} 6. bxc3 {[%emt 0:00:02]} Ne7 {[%emt 0:00:07]} 7. Qg4 {[%emt 0:00:15]} Qc7 {[%emt 0:00:05]} 8. Bd3 {[%emt 0:00:05]} c4 {[%emt 0:06:35]} 9. Be2 {[%emt 0:01:10]} Nf5 {[%emt 0:00:55]} 10. h4 {[%emt 0:06:48]} Bd7 {[%emt 0:02:14]} 11. h5 {[%emt 0:08:43]} h6 {[%emt 0:04:06]} 12. Nf3 {[%emt 0:06:07]} Nc6 {[%emt 0:04:15]} 13. Nh4 {[%emt 0:04:54]} Nce7 {[%emt 0:02:37]} 14. f4 {[%emt 0:04:41]} O-O-O {[%emt 0:04:16]} 15. Bd2 {[%emt 0:08:12]} Rdg8 {[%emt 0:05:14]} 16. Nxf5 {[%emt 0:03:25]} Nxf5 {[%emt 0:00:31]} 17. Qh3 {[%emt 0:00:33]} Ne7 {[%emt 0:12:27]} 18. Be3 {[%emt 0:11:58]} g6 {[%emt 0:07:42]} 19. g4 {[%emt 0:03:22]} Qa5 {[%emt 0:04:50]} 20. Kd2 {[%emt 0:01:16]} Qd8 {[%emt 0:05:20]} 21. Rh2 {[%emt 0:06:29]} Qf8 {[%emt 0:03:52]} 22. Qh4 {[%emt 0:00:59]} gxh5 {[%emt 0:04:46]} 23. Qxh5 {[%emt 0:03:15]} f5 {[%emt 0:01:36]} 24. Rah1 {[%emt 0:02:26]} Be8 {[%emt 0:05:41]} 25. Qh3 {[%emt 0:01:08]} Kd7 {[%emt 0:01:34]} 26. g5 {[%emt 0:06:48]} h5 {[%emt 0:05:08]} 27. Qf1 {[%emt 0:00:04]} h4 {[%emt 0:01:15]} 28. Rxh4 {[%emt 0:02:12]} Rxh4 {[%emt 0:01:02]} 29. Rxh4 {[%emt 0:00:00]} Ng6 {[%emt 0:00:24]} 30. Rh7+ {[%emt 0:01:18]} Kc8 {[%emt 0:01:23]} 31. Bxc4 {[%emt 0:02:31]} Rh8 {[%emt 0:03:56]} 32. Rxh8 {[%emt 0:03:19]} Qxh8 {[%emt 0:01:17]} 33. Bb5 {[%emt 0:02:41]} Qh2+ {[%emt 0:01:01]} 34. Kc1 {[%emt 0:00:15]} Bxb5 {[%emt 0:03:35]} 35. Qxb5 {[%emt 0:00:01]} Nxf4 {[%emt 0:00:12]} 36. Qe8+ {[%emt 0:00:54]} Kc7 {[%emt 0:00:24]} 37. Qe7+ {[%emt 0:07:00]} Kc8 {[%emt 0:01:46]} 38. Bxf4 {[%emt 0:00:33]} Qxf4+ {[%emt 0:00:07]} 39. Kb2 {[%emt 0:00:03]} Qf1 {[%emt 0:02:01]} 40. Qxe6+ {[%emt 0:00:16]} Kc7 {[%emt 0:00:05]} 41. Qd6+ {[%emt 0:30:33]} Kc8 {[%emt 0:30:12]} 42. Qxd5 {[%emt 0:00:05]} Qa6 {[%emt 0:00:33]} 43. e6 {[%emt 0:00:16]} Qb6+ {[%emt 0:00:56]} 44. Kc1 {[%emt 0:00:23]} f4 {[%emt 0:00:32]} 45. Qc5+ {[%emt 0:00:49]} 1-0

[Event "Czech Youth U16 Boys 2024"]
[Site "Kouty nad Desnou"]
[Date "2024.03.16"]
[Round "9.9"]
[White "Vysinsky, Otakar"]
[Black "Zezula, Matej"]
[Result "1-0"]
[ECO "B23"]
[WhiteElo "1882"]
[BlackElo "1825"]
[Annotator "NA RC"]
[PlyCount "61"]
[EventDate "2024.03.10"]
[EventType "swiss"]
[EventCountry "CZE"]
[SourceTitle "playchess.com"]
[Source "ChessBase"]
[SourceQuality "1"]
[TimeControl "40/5400+30:1800+30"]

1. e4 {[%emt 0:00:05]} c5 {[%emt 0:00:06]} 2. Nc3 {[%emt 0:00:07]} e6 {[%emt 0:00:12]} 3. g3 {[%emt 0:00:10]} d5 {[%emt 0:00:10]} 4. exd5 {[%emt 0:00:05]} exd5 {[%emt 0:00:08]} 5. Bg2 {[%emt 0:00:08]} Nf6 {[%emt 0:00:32]} 6. d3 {[%emt 0:00:23]} d4 {[%emt 0:03:27]} 7. Ne4 {[%emt 0:00:08]} Nxe4 {[%emt 0:00:07]} 8. dxe4 {[%emt 0:00:30]} Be7 {[%emt 0:00:42]} 9. Ne2 {[%emt 0:00:57]} O-O {[%emt 0:00:44]} 10. O-O {[%emt 0:01:29]} Nc6 {[%emt 0:04:00]} 11. Nf4 {[%emt 0:02:27]} Rb8 {[%emt 0:10:56]} 12. Nd5 {[%emt 0:05:32]} Be6 {[%emt 0:01:16]} 13. Nxe7+ {[%emt 0:08:11]} Qxe7 {[%emt 0:00:19]} 14. f4 {[%emt 0:01:14]} Bc4 {[%emt 0:02:33]} 15. Re1 {[%emt 0:08:50]} Rfd8 {[%emt 0:02:40]} 16. b3 {[%emt 0:06:48]} Ba6 {[%emt 0:00:28]} 17. Bb2 {[%emt 0:02:28]} b5 {[%emt 0:00:35]} 18. a3 {[%emt 0:06:21]} Qd7 {[%emt 0:02:55]} 19. Qh5 {[%emt 0:06:04]} Ne7 {[%emt 0:03:57]} 20. Rad1 {[%emt 0:01:57]} Qc7 {[%emt 0:01:22]} 21. Bc1 {[%emt 0:09:28]} c4 {[%emt 0:02:55]} 22. f5 {[%emt 0:01:35]} Qb6 {[%emt 0:00:42]} 23. e5 {[%emt 0:04:01]} g6 {[%emt 0:06:00]} 24. fxg6 {[%emt 0:01:50]} hxg6 {[%emt 0:01:37]} 25. Qg5 {[%emt 0:01:04]} Nd5 {[%emt 0:01:31]} 26. e6 {[%emt 0:04:19]} d3+ {[%emt 0:00:43]} 27. Kh1 {[%emt 0:02:02]} Nc3 {[%emt 0:03:46]} 28. exf7+ {[%emt 0:00:52]} Kxf7 {[%emt 0:00:16]} 29. Re7+ {[%emt 0:02:26]} Kg8 {[%emt 0:00:11]} 30. Qh6 {[%emt 0:00:23]} Qf6 {[%emt 0:00:21]} 31. Qh7+ {[%emt 0:00:09]} 1-0

[Event "Czech Youth U16 Boys 2024"]
[Site "Kouty nad Desnou"]
[Date "2024.03.16"]
[Round "9.10"]
[White "Pressler, Tobias"]
[Black "Buchtova, Viktorie"]
[Result "0-1"]
[ECO "A02"]
[WhiteElo "1954"]
[BlackElo "1874"]
[Annotator "RC"]
[PlyCount "104"]
[EventDate "2024.03.10"]
[EventType "swiss"]
[EventCountry "CZE"]
[SourceTitle "playchess.com"]
[Source "ChessBase"]
[SourceQuality "1"]
[TimeControl "40/5400+30:1800+30"]

1. f4 {[%emt 0:00:35]} Nf6 {[%emt 0:00:05]} 2. Nf3 {[%emt 0:00:04]} g6 {[%emt 0:00:04]} 3. g3 {[%emt 0:00:03]} Bg7 {[%emt 0:00:03]} 4. Bg2 {[%emt 0:00:03]} d5 {[%emt 0:00:29]} 5. O-O {[%emt 0:00:07]} c5 {[%emt 0:01:03]} 6. d3 {[%emt 0:00:12]} Nc6 {[%emt 0:00:22]} 7. c3 {[%emt 0:00:09]} O-O {[%emt 0:00:26]} 8. Qc2 {[%emt 0:00:15]} d4 {[%emt 0:00:59]} 9. e4 {[%emt 0:03:52]} dxe3 {[%emt 0:04:05]} 10. Bxe3 {[%emt 0:00:08]} Bf5 {[%emt 0:03:11]} 11. Rd1 {[%emt 0:00:37]} c4 {[%emt 0:03:31]} 12. Ne1 {[%emt 0:03:58]} Ng4 {[%emt 0:18:58]} 13. Qe2 {[%emt 0:00:31]} Nd4 {[%emt 0:11:43]} 14. Qd2 {[%emt 0:04:42]} cxd3 {[%emt 0:05:24]} 15. Na3 {[%emt 0:01:29]} Nc2 {[%emt 0:05:47]} 16. Nexc2 {[%emt 0:10:54]} dxc2 {[%emt 0:00:22]} 17. Rdc1 {[%emt 0:02:12]} Qxd2 {[%emt 0:07:40]} 18. Bxd2 {[%emt 0:00:05]} Rfd8 {[%emt 0:01:56]} 19. Be1 {[%emt 0:00:07]} Ne3 {[%emt 0:01:02]} 20. Bf3 {[%emt 0:00:14]} Rd7 {[%emt 0:11:11]} 21. Kf2 {[%emt 0:02:04]} Nd1+ {[%emt 0:00:36]} 22. Bxd1 {[%emt 0:00:16]} cxd1=Q {[%emt 0:00:13]} 23. Rxd1 {[%emt 0:00:05]} Rad8 {[%emt 0:00:15]} 24. Rxd7 {[%emt 0:00:17]} Rxd7 {[%emt 0:00:01]} 25. Nc4 {[%emt 0:00:37]} b5 {[%emt 0:03:29]} 26. Ne3 {[%emt 0:00:06]} Be6 {[%emt 0:01:55]} 27. a4 {[%emt 0:03:44]} Rb7 {[%emt 0:03:29]} 28. axb5 {[%emt 0:05:45]} Rxb5 {[%emt 0:01:07]} 29. Rxa7 {[%emt 0:01:07]} Rxb2+ {[%emt 0:01:29]} 30. Kf3 {[%emt 0:00:05]} Rb3 {[%emt 0:04:37]} 31. Ra8+ {[%emt 0:01:40]} Bf8 {[%emt 0:00:03]} 32. Ke4 {[%emt 0:01:16]} f5+ {[%emt 0:01:40]} 33. Ke5 {[%emt 0:01:55]} Kf7 {[%emt 0:00:02]} 34. Rxf8+ {[%emt 0:04:48]} Kxf8 {[%emt 0:00:01]} 35. Kxe6 {[%emt 0:00:07]} Rb2 {[%emt 0:00:21]} 36. Nc4 {[%emt 0:22:58]} Re2+ {[%emt 0:00:08]} 37. Ne5 {[%emt 0:00:03]} Rxe1 {[%emt 0:01:14]} 38. Kd7 {[%emt 0:00:04]} Re2 {[%emt 0:06:36]} 39. c4 {[%emt 0:00:10]} Rxh2 {[%emt 0:00:07]} 40. c5 {[%emt 0:00:14]} Rd2+ {[%emt 0:01:42]} 41. Kc8 {[%emt 0:30:04]} Rg2 {[%emt 0:17:20]} 42. c6 {[%emt 0:00:00]} Rxg3 {[%emt 0:02:24]} 43. c7 {[%emt 0:00:00]} Ke8 {[%emt 0:01:47]} 44. Kb7 {[%emt 0:00:00]} Rb3+ {[%emt 0:00:19]} 45. Ka6 {[%emt 0:00:00]} Rc3 {[%emt 0:00:50]} 46. Kb7 {[%emt 0:00:00]} h5 {[%emt 0:01:13]} 47. c8=Q+ {[%emt 0:00:00]} Rxc8 {[%emt 0:00:10]} 48. Kxc8 {[%emt 0:00:00]} h4 {[%emt 0:00:44]} 49. Nf3 {[%emt 0:00:00]} h3 {[%emt 0:00:07]} 50. Kc7 {[%emt 0:00:00]} e5 {[%emt 0:01:00]} 51. fxe5 {[%emt 0:00:00]} g5 {[%emt 0:00:42]} 52. Kd6 {[%emt 0:00:00]} g4 {[%emt 0:00:54]} 0-1

[Event "Czech Youth U16 Boys 2024"]
[Site "Kouty nad Desnou"]
[Date "2024.03.16"]
[Round "9.11"]
[White "Tegda, Vojtech"]
[Black "Hozda, Max"]
[Result "0-1"]
[ECO "B62"]
[WhiteElo "1936"]
[BlackElo "2032"]
[Annotator "NA RC"]
[PlyCount "100"]
[EventDate "2024.03.10"]
[EventType "swiss"]
[EventCountry "CZE"]
[SourceTitle "playchess.com"]
[Source "ChessBase"]
[SourceQuality "1"]
[TimeControl "40/5400+30:1800+30"]

1. e4 {[%emt 0:00:03]} c5 {[%emt 0:04:53]} 2. Nf3 {[%emt 0:01:46]} e6 {[%emt 0:00:19]} 3. d4 {[%emt 0:00:38]} cxd4 {[%emt 0:00:24]} 4. Nxd4 {[%emt 0:00:17]} Nf6 {[%emt 0:00:22]} 5. Nc3 {[%emt 0:03:05]} Nc6 {[%emt 0:00:33]} 6. Bg5 {[%emt 0:02:19]} d6 {[%emt 0:04:28]} 7. Ndb5 {[%emt 0:04:59]} a6 {[%emt 0:01:18]} 8. Bxf6 {[%emt 0:00:45]} gxf6 {[%emt 0:00:14]} 9. Nd4 {[%emt 0:00:20]} Be7 {[%emt 0:12:12] B45: Sicilian Four Knights.} 10. Be2 {[%emt 0:04:21]} O-O {[%emt 0:14:14]} 11. h4 {[%emt 0:07:29]} Kh8 {[%emt 0:01:47]} 12. g4 {[%emt 0:08:09]} Rg8 {[%emt 0:07:54]} 13. Qd2 {[%emt 0:04:25]} Bd7 {[%emt 0:10:57]} 14. O-O-O {[%emt 0:03:55]} b5 {[%emt 0:04:57]} 15. Rdg1 {[%emt 0:01:21]} Qb6 {[%emt 0:03:24]} 16. Nxc6 {[%emt 0:01:27]} Bxc6 {[%emt 0:00:23]} 17. Bd3 {[%emt 0:00:45]} b4 {[%emt 0:01:58]} 18. Nd1 {[%emt 0:00:25]} d5 {[%emt 0:03:03]} 19. f3 {[%emt 0:15:11]} Rac8 {[%emt 0:05:33]} (19... Rad8 $17 20. Qe2 Qd4 21. exd5 Qxd5 (21... Rxd5 22. Rf1 $17)) 20. Qh6 {[%emt 0:01:56]} Rg6 {[%emt 0:02:53]} 21. Qh5 {[%emt 0:00:43]} dxe4 {[%emt 0:03:16]} 22. fxe4 {[%emt 0:00:50]} Bb5 {[%emt 0:13:33]} 23. Bxb5 {[%emt 0:03:24]} axb5 {[%emt 0:01:02]} 24. Kb1 {[%emt 0:00:25]} Qa6 {[%emt 0:00:44]} 25. Rh3 {[%emt 0:00:56]} Ra8 {[%emt 0:00:20]} 26. g5 {[%emt 0:01:26]} Qxa2+ {[%emt 0:00:06]} 27. Kc1 {[%emt 0:00:04]} Rd8 {[%emt 0:00:50]} 28. Rd3 $19 {[%emt 0:00:15]} Rxd3 {[%emt 0:00:58]} 29. cxd3 {[%emt 0:00:01]} Qb3 {[%emt 0:01:06]} 30. Qf3 {[%emt 0:00:48]} Rg8 {[%emt 0:00:33]} 31. gxf6 {[%emt 0:01:47]} Rc8+ {[%emt 0:00:10]} 32. Kd2 {[%emt 0:00:24]} Bf8 {[%emt 0:01:31]} 33. Qg3 {[%emt 0:11:28]} Bh6+ {[%emt 0:00:27]} 34. Ke1 {[%emt 0:00:03]} Qc2 {[%emt 0:00:33]} 35. Rg2 {[%emt 0:00:51]} Qc5 {[%emt 0:00:29]} 36. Qf2 {[%emt 0:05:42]} Qe5 {[%emt 0:00:13]} 37. Qa7 {[%emt 0:01:26]} Qxf6 {[%emt 0:00:17]} 38. Rf2 {[%emt 0:00:46]} Bf4 {[%emt 0:00:52]} 39. Qe3 {[%emt 0:03:54]} Bxe3 {[%emt 0:00:36]} 40. Rxf6 {[%emt 0:00:07]} Kg7 {[%emt 0:00:13]} 41. Rf3 {[%emt 0:31:50]} Bd4 {[%emt 0:02:16]} 42. Rg3+ {[%emt 0:00:00]} Kh6 {[%emt 0:04:38]} 43. Rg5 {[%emt 0:00:00]} Rc5 {[%emt 0:02:44]} 44. Rg2 {[%emt 0:00:00]} Kh5 {[%emt 0:02:09]} 45. Kd2 {[%emt 0:00:00]} b3 {[%emt 0:02:01]} 46. Ne3 {[%emt 0:00:00]} Bxb2 {[%emt 0:02:31]} 47. Rg1 {[%emt 0:00:00]} Bc3+ {[%emt 0:00:37]} 48. Ke2 {[%emt 0:00:00]} Bd4 {[%emt 0:00:18]} 49. Rb1 {[%emt 0:00:00]} b2 {[%emt 0:00:33]} 50. Kd2 {[%emt 0:00:00]} Rc1 {[%emt 0:00:17]} 0-1

[Event "Czech Youth U16 Boys 2024"]
[Site "Kouty nad Desnou"]
[Date "2024.03.16"]
[Round "9.12"]
[White "Zelba, Lukas"]
[Black "Dvorak, Jan"]
[Result "1-0"]
[ECO "C01"]
[WhiteElo "1979"]
[BlackElo "2154"]
[Annotator "RC"]
[PlyCount "95"]
[EventDate "2024.03.10"]
[EventType "swiss"]
[EventCountry "CZE"]
[SourceTitle "playchess.com"]
[Source "ChessBase"]
[SourceQuality "1"]
[TimeControl "40/5400+30:1800+30"]

1. e4 {[%emt 0:00:01]} e6 {[%emt 0:00:05]} 2. d4 {[%emt 0:00:04]} d5 {[%emt 0:00:03]} 3. exd5 {[%emt 0:00:02]} exd5 {[%emt 0:00:11]} 4. Bd3 {[%emt 0:00:04]} Nc6 {[%emt 0:01:29]} 5. Ne2 {[%emt 0:00:18]} Bd6 {[%emt 0:05:13]} 6. Nbc3 {[%emt 0:00:12]} Nge7 {[%emt 0:01:10]} 7. Be3 {[%emt 0:07:47]} a6 {[%emt 0:01:28]} 8. Qd2 {[%emt 0:02:49]} Nb4 {[%emt 0:01:07]} 9. Nf4 {[%emt 0:05:13]} Bxf4 {[%emt 0:06:48]} 10. Bxf4 {[%emt 0:00:06]} Nxd3+ {[%emt 0:00:07]} 11. Qxd3 {[%emt 0:00:12]} Bf5 {[%emt 0:00:49]} 12. Qg3 {[%emt 0:03:36]} Ng6 {[%emt 0:12:41]} 13. Bxc7 {[%emt 0:04:34]} Qe7+ {[%emt 0:01:20]} 14. Qe3 {[%emt 0:00:16]} Qxe3+ {[%emt 0:13:36]} 15. fxe3 {[%emt 0:00:15]} Rc8 {[%emt 0:00:23]} 16. Bg3 {[%emt 0:03:16]} Bxc2 {[%emt 0:03:26]} 17. Kd2 {[%emt 0:00:11]} Be4 {[%emt 0:02:12]} 18. Rac1 {[%emt 0:02:32]} O-O {[%emt 0:09:28]} 19. Nxe4 {[%emt 0:04:28]} dxe4 {[%emt 0:00:06]} 20. Rc3 {[%emt 0:00:02]} Rxc3 {[%emt 0:06:47]} 21. bxc3 {[%emt 0:00:31]} f5 {[%emt 0:04:28]} 22. Rb1 {[%emt 0:05:28]} Rf7 {[%emt 0:00:11]} 23. c4 {[%emt 0:03:40]} Rd7 {[%emt 0:01:19]} 24. Kc3 {[%emt 0:02:51]} Ne7 {[%emt 0:00:45]} 25. a4 {[%emt 0:00:59]} g5 {[%emt 0:00:21]} 26. d5 {[%emt 0:01:56]} Ng6 {[%emt 0:02:21]} 27. Kd4 {[%emt 0:03:07]} Kf7 {[%emt 0:05:36]} 28. c5 {[%emt 0:03:25]} Ne7 {[%emt 0:01:18]} 29. Bd6 {[%emt 0:01:51]} Nc8 {[%emt 0:01:11]} 30. Ke5 {[%emt 0:01:18]} Kg6 {[%emt 0:05:46]} 31. a5 {[%emt 0:04:18]} h5 {[%emt 0:02:24]} 32. g3 {[%emt 0:10:07]} g4 {[%emt 0:03:51]} 33. Bb8 {[%emt 0:01:17]} Re7+ {[%emt 0:00:55]} 34. Kd4 {[%emt 0:01:09]} Rd7 {[%emt 0:00:42]} 35. d6 {[%emt 0:03:17]} Kf6 {[%emt 0:03:52]} 36. Kc4 {[%emt 0:01:03]} Ke6 {[%emt 0:02:14]} 37. Bc7 {[%emt 0:00:13]} Na7 {[%emt 0:00:34]} 38. Rxb7 {[%emt 0:02:01]} Nc6 {[%emt 0:01:36]} 39. Rb6 {[%emt 0:05:51]} Ne5+ {[%emt 0:00:31]} 40. Kc3 {[%emt 0:04:43]} Kd5 {[%emt 0:01:10]} 41. Rxa6 {[%emt 0:40:31]} Kxc5 {[%emt 0:01:06]} 42. Ra8 {[%emt 0:00:00]} Nc4 {[%emt 0:09:59]} 43. Rd8 {[%emt 0:00:00]} Rxd8 {[%emt 0:05:43]} 44. Bxd8 {[%emt 0:00:00]} Ne5 {[%emt 0:05:40]} 45. a6 {[%emt 0:00:00]} Kc6 {[%emt 0:01:43]} 46. Bf6 {[%emt 0:00:00]} Nd7 {[%emt 0:00:39]} 47. Bd4 {[%emt 0:00:00]} f4 {[%emt 0:01:43]} 48. exf4 {[%emt 0:00:00]} 1-0